bitfinex/quotes_BTCUSD_20251215
["timestamp","ask_amount","ask_price","bid_price","bid_amount"]
[1765765656071,0.22275587,89785.0,89773.0,0.27255282]
[1765765656263,0.01113846,89779.0,89775.0,0.01113895]
[1765765656472,0.01113883,89776.0,89775.0,0.06857]
[1765765656655,0.22276489,89781.0,89776.0,0.01113883]
[1765765656857,0.01113858,89778.0,89775.0,0.11834]
[1765765657365,0.23391345,89777.0,89774.0,0.035]
[1765765657839,0.23391345,89777.0,89775.0,0.001]
[1765765658018,0.23391345,89777.0,89774.0,0.10357]
[1765765658335,0.23391345,89777.0,89774.0,0.035]
[1765765658537,0.23391345,89777.0,89775.0,0.001]
[1765765659603,0.23391345,89777.0,89774.0,0.035]
[1765765659807,0.00069225,89775.0,89774.0,0.036]
[1765765660252,0.00069225,89775.0,89774.0,0.035]
[1765765660972,0.00069225,89775.0,89774.0,0.08477]
[1765765661506,0.00069225,89775.0,89774.0,0.08677]
[1765765661918,0.00069225,89775.0,89774.0,0.002]
[1765765662130,0.27000142,89775.0,89774.0,0.002]
[1765765662836,0.27000142,89775.0,89764.0,0.01114032]
[1765765662837,0.27000142,89775.0,89767.0,0.00011507]
[1765765662838,0.22279654,89768.0,89767.0,0.00011507]
[1765765663036,0.38062654,89768.0,89767.0,0.00011507]
[1765765663233,0.45070815,89768.0,89767.0,0.00011507]
[1765765663443,0.38110815,89768.0,89767.0,0.00011507]
[1765765663655,0.33457815,89768.0,89767.0,0.00011507]
[1765765664066,0.33457815,89768.0,89767.0,0.00111507]
[1765765664673,0.33457815,89768.0,89767.0,0.00211507]
[1765765665884,0.38110815,89768.0,89767.0,0.00211507]
[1765765666119,0.45070815,89768.0,89767.0,0.00211507]
[1765765666322,0.33940815,89768.0,89767.0,0.00211507]
[1765765666965,0.33940815,89768.0,89767.0,0.00111507]
[1765765667163,0.33940815,89768.0,89767.0,0.00011507]
[1765765667415,0.34040815,89768.0,89767.0,0.00011507]
[1765765667886,0.33940815,89768.0,89767.0,0.00011507]
[1765765668453,0.34140815,89768.0,89767.0,0.00011507]
[1765765668633,0.45270815,89768.0,89767.0,0.00011507]
[1765765669289,0.22527815,89768.0,89767.0,0.00011507]
[1765765669869,0.22727815,89768.0,89767.0,0.00011507]
[1765765670286,0.00248161,89768.0,89767.0,0.00011507]
[1765765670465,0.00248161,89768.0,89767.0,0.03511507]
[1765765670466,0.00048161,89768.0,89767.0,0.03511507]
[1765765670670,0.00248161,89768.0,89767.0,0.15345507]
[1765765671211,0.00248161,89768.0,89767.0,0.08488507]
[1765765672181,0.00248161,89768.0,89767.0,0.15506794]
[1765765672910,0.04901161,89768.0,89767.0,0.00172794]
[1765765673117,0.00248161,89768.0,89767.0,0.00172794]
[1765765673313,0.00048161,89768.0,89767.0,0.00172794]
[1765765673860,0.1211583,89768.0,89767.0,0.00172794]
[1765765674086,0.0505583,89768.0,89767.0,0.00172794]
[1765765674280,0.0040283,89768.0,89767.0,0.00172794]
[1765765674439,0.0040283,89768.0,89767.0,0.00011507]
[1765765674440,0.1201583,89768.0,89767.0,0.00011507]
[1765765674646,0.2314583,89768.0,89767.0,0.00011507]
[1765765674845,0.22791161,89768.0,89767.0,0.00011507]
[1765765675075,0.11178161,89768.0,89767.0,0.00011507]
[1765765675269,0.1153283,89768.0,89767.0,0.00011507]
[1765765676456,0.1163283,89768.0,89767.0,0.00011507]
[1765765676673,0.1643083,89768.0,89767.0,0.00011507]
[1765765676993,0.1173283,89768.0,89767.0,0.00011507]
[1765765677319,0.0060283,89768.0,89767.0,0.00011507]
[1765765677669,0.0530083,89768.0,89767.0,0.00011507]
[1765765680695,0.0060283,89768.0,89767.0,0.00011507]
[1765765681994,0.0060283,89768.0,89767.0,0.16100794]
[1765765682195,0.00248161,89768.0,89767.0,0.16100794]
[1765765682863,0.00148161,89768.0,89767.0,0.16100794]
[1765765683062,0.11886161,89768.0,89767.0,0.00172794]
[1765765683263,0.00148161,89768.0,89767.0,0.15961794]
[1765765683470,0.00048161,89768.0,89767.0,0.15961794]
[1765765683788,0.1542983,89768.0,89767.0,0.00011507]
[1765765684752,0.2655983,89768.0,89767.0,0.00011507]
[1765765684961,0.26205161,89768.0,89767.0,0.00011507]
[1765765685152,0.26305161,89768.0,89767.0,0.00011507]
[1765765685583,1.26205161,89768.0,89767.0,0.00011507]
[1765765685782,1.15075161,89768.0,89767.0,0.00011507]
[1765765685987,1.27405161,89768.0,89767.0,0.00111507]
[1765765686160,1.27305161,89768.0,89767.0,0.00111507]
[1765765686389,0.27305161,89768.0,89767.0,0.00111507]
[1765765686604,1.28505161,89768.0,89767.0,0.00211507]
[1765765687360,0.28505161,89768.0,89767.0,0.00211507]
[1765765687563,1.28505161,89768.0,89767.0,0.00211507]
[1765765688746,1.33507,89768.0,89767.0,0.00211507]
[1765765690718,1.27943998,89768.0,89767.0,0.00211507]
[1765765690919,1.33507,89768.0,89767.0,0.00211507]
[1765765692052,1.33507,89768.0,89732.0,0.30184429]
[1765765692053,0.22287599,89736.0,89734.0,0.02959703]
[1765765692279,0.23410944,89736.0,89734.0,0.00161287]
[1765765693262,0.23410944,89736.0,89734.0,0.00461287]
[1765765694056,0.23410944,89736.0,89734.0,0.00661287]
[1765765694600,0.23410944,89736.0,89734.0,0.00461287]
[1765765695204,0.23410944,89736.0,89734.0,0.00161287]
[1765765698047,0.1113,89735.0,89734.0,0.00161287]
[1765765698431,0.23410944,89736.0,89734.0,0.00161287]
[1765765699173,0.22289089,89730.0,89729.0,0.03639]
[1765765699423,0.2340321,89732.0,89729.0,0.03639]
[1765765699578,0.2340321,89732.0,89729.0,0.03800287]
[1765765699958,0.22289086,89731.0,89729.0,0.03800287]
[1765765700405,0.22289086,89731.0,89729.0,0.03900287]
[1765765700755,0.22289086,89731.0,89729.0,0.04000287]
[1765765701270,0.22289086,89731.0,89729.0,0.03900287]
[1765765701468,0.22289086,89731.0,89729.0,0.03800287]
[1765765701681,0.22289086,89731.0,89729.0,0.03900287]
[1765765702069,0.22289089,89730.0,89729.0,0.00261287]
[1765765702279,0.33419089,89730.0,89729.0,0.00361287]
[1765765702503,0.22289089,89730.0,89729.0,0.00361287]
[1765765703048,0.22289089,89730.0,89729.0,0.00261287]
[1765765703578,0.22289089,89730.0,89729.0,0.00361287]
[1765765703778,0.22289089,89730.0,89729.0,0.00261287]
[1765765704631,0.22289089,89730.0,89729.0,0.00161287]
[1765765705031,0.22389089,89730.0,89729.0,0.00161287]
[1765765706875,0.22389089,89730.0,89729.0,0.14779287]
[1765765707220,0.22389089,89730.0,89720.0,0.47222695]
[1765765707221,0.22292567,89716.0,89715.0,0.02955522]
[1765765707419,0.22292567,89716.0,89710.0,0.30184702]
[1765765707420,0.22292816,89715.0,89710.0,0.30184702]
[1765765707563,0.12244566,89721.0,89710.0,0.30184702]
[1765765707564,0.01114578,89720.0,89714.0,0.01114653]
[1765765707767,0.01114566,89721.0,89715.0,0.30652762]
[1765765707990,0.01114566,89721.0,89715.0,0.30814049]
[1765765708199,0.01114591,89719.0,89715.0,0.09635873]
[1765765708401,0.01114603,89718.0,89715.0,0.00161287]
[1765765709002,0.22292319,89717.0,89715.0,0.07622287]
[1765765709202,0.22292319,89717.0,89715.0,0.00361287]
[1765765709416,0.22292319,89717.0,89715.0,0.00261287]
[1765765709618,0.29605319,89717.0,89715.0,0.00161287]
[1765765709815,0.16005,89716.0,89715.0,0.00261287]
[1765765709993,0.16005,89716.0,89715.0,0.00361287]
[1765765710402,0.16005,89716.0,89715.0,0.001]
[1765765710403,0.23327,89716.0,89715.0,0.001]
[1765765710854,0.23327,89716.0,89715.0,0.002]
[1765765711634,0.23327,89716.0,89715.0,0.001]
[1765765711835,0.23327,89716.0,89681.0,0.01124063]
[1765765711836,0.23414763,89687.0,89681.0,0.01124063]
[1765765712063,0.23414763,89687.0,89686.0,0.0199]
[1765765712236,0.01114988,89687.0,89686.0,0.06497]
[1765765712478,0.01114988,89687.0,89686.0,0.0199]
[1765765712896,0.01114988,89687.0,89684.0,0.00932094]
[1765765712897,0.22300024,89686.0,89684.0,0.00932094]
[1765765713075,0.22300024,89686.0,89684.0,0.01243633]
[1765765713317,0.22300024,89686.0,89684.0,0.01043633]
[1765765713669,0.22300024,89686.0,89684.0,0.00943633]
[1765765714422,0.04824,89685.0,89684.0,0.00943633]
[1765765714626,0.12146,89685.0,89684.0,0.00943633]
[1765765714975,0.21497941,89685.0,89684.0,0.00782346]
[1765765715199,0.23276,89685.0,89684.0,0.00782346]
[1765765715774,0.23376,89685.0,89684.0,0.00782346]
[1765765715976,0.23276,89685.0,89684.0,0.00782346]
[1765765716182,0.04824,89685.0,89684.0,0.00782346]
[1765765716381,0.3441237,89686.0,89684.0,0.00782346]
[1765765716382,0.22300024,89686.0,89684.0,0.00782346]
[1765765716561,0.22300024,89686.0,89684.0,0.00882346]
[1765765716562,0.003,89685.0,89684.0,0.00882346]
[1765765716772,0.006,89685.0,89684.0,0.00882346]
[1765765717175,0.003,89685.0,89684.0,0.00882346]
[1765765717856,0.003,89686.0,89684.0,0.00882346]
[1765765717857,0.003,89686.0,89684.0,0.05450633]
[1765765718043,0.003,89686.0,89685.0,0.04668287]
[1765765718044,0.006,89686.0,89685.0,0.04668287]
[1765765718416,0.006,89686.0,89685.0,0.11987287]
[1765765718417,0.003,89686.0,89685.0,0.11987287]
[1765765718823,0.01114914,89693.0,89690.0,0.01114951]
[1765765719906,0.01214914,89693.0,89690.0,0.01114951]
[1765765720106,0.001,89693.0,89691.0,0.22298781]
[1765765720308,0.001,89693.0,89692.0,0.04507]
[1765765720551,0.001,89693.0,89690.0,0.01114951]
[1765765720878,0.002,89693.0,89690.0,0.01276238]
[1765765721270,0.001,89693.0,89690.0,0.01276238]
[1765765721503,0.002,89693.0,89690.0,0.23575181]
[1765765721897,0.01114876,89696.0,89693.0,0.01114914]
[1765765722312,0.01114889,89695.0,89692.0,0.01114926]
[1765765722504,0.01114901,89694.0,89691.0,0.03713]
[1765765723019,0.34543097,89694.0,89691.0,0.03713]
[1765765723220,0.22298781,89691.0,89690.0,0.00161287]
[1765765727066,0.01114914,89693.0,89690.0,0.00161287]
[1765765727914,0.22298532,89692.0,89690.0,0.00161287]
[1765765729017,0.29620532,89692.0,89690.0,0.00161287]
[1765765729243,0.22298532,89692.0,89690.0,0.00161287]
[1765765731228,0.22398532,89692.0,89690.0,0.00161287]
[1765765733359,0.001,89692.0,89690.0,0.00161287]
[1765765734133,0.001,89692.0,89691.0,0.04507]
[1765765734338,0.001,89692.0,89690.0,0.00161287]
[1765765735139,0.234132,89693.0,89690.0,0.00161287]
[1765765735344,0.22298781,89691.0,89690.0,0.00161287]
[1765765737665,0.22398781,89691.0,89690.0,0.00161287]
[1765765739330,0.001,89691.0,89690.0,0.00161287]
[1765765742009,0.001,89691.0,89690.0,0.33953316]
[1765765742193,0.001,89691.0,89690.0,0.6696475]
[1765765742865,0.001,89691.0,89690.0,0.44665721]
[1765765743367,0.01114864,89697.0,89692.0,0.01114926]
[1765765743593,0.01114864,89697.0,89696.0,0.04566]
[1765765744064,0.01114864,89697.0,89692.0,0.01276213]
[1765765744065,0.22298284,89693.0,89692.0,0.00161287]
[1765765744276,0.38172284,89693.0,89692.0,0.00161287]
[1765765744687,0.27042284,89693.0,89692.0,0.00161287]
[1765765744832,0.22298284,89693.0,89692.0,0.00161287]
[1765765745032,0.33428284,89693.0,89692.0,0.00161287]
[1765765746323,0.30234573,89697.0,89692.0,0.00161287]
[1765765746324,0.01114789,89703.0,89696.0,0.01114876]
[1765765746532,0.1113,89715.0,89707.0,0.0111474]
[1765765746533,0.22293721,89712.0,89707.0,0.0111474]
[1765765746704,0.22293721,89712.0,89707.0,0.235707]
[1765765746940,0.0111469,89711.0,89708.0,0.06927]
[1765765747272,0.0111469,89711.0,89710.0,0.04566]
[1765765747774,0.0111469,89711.0,89707.0,0.00161287]
[1765765747775,0.2340876,89710.0,89707.0,0.00161287]
[1765765748749,0.2340876,89710.0,89708.0,0.06927]
[1765765748882,0.2340876,89710.0,89707.0,0.00161287]
[1765765749085,0.2340876,89710.0,89709.0,0.04566]
[1765765749326,0.0131469,89711.0,89709.0,0.04566]
[1765765749327,0.0131469,89711.0,89709.0,0.04727287]
[1765765749328,0.004,89711.0,89709.0,0.04727287]
[1765765749637,0.002,89711.0,89710.0,0.11493]
[1765765749831,0.01114665,89713.0,89710.0,0.11493]
[1765765750026,0.01114665,89713.0,89709.0,0.00161287]
[1765765750027,0.002,89711.0,89709.0,0.00161287]
[1765765750182,0.001,89710.0,89709.0,0.00161287]
[1765765750620,0.01114653,89714.0,89710.0,0.01114702]
[1765765750997,0.0111464,89715.0,89713.0,0.06446]
[1765765751135,0.0111464,89715.0,89714.0,0.04566]
[1765765751329,0.1113,89726.0,89714.0,0.04566]
[1765765751332,0.22289044,89731.0,89722.0,0.01114553]
[1765765751539,0.06822,89744.0,89730.0,0.04566]
[1765765751540,0.23403175,89732.0,89730.0,0.04566]
[1765765751804,0.01114429,89732.0,89730.0,0.04566]
[1765765751955,0.01114429,89732.0,89726.0,0.04780504]
[1765765751956,0.01114442,89731.0,89726.0,0.04780504]
[1765765752187,0.01114454,89730.0,89727.0,0.01114491]
[1765765752568,0.01114454,89730.0,89729.0,0.04566]
[1765765752764,0.01114454,89730.0,89729.0,0.11493]
[1765765752965,0.01114442,89731.0,89729.0,0.11493]
[1765765753171,0.01114466,89729.0,89726.0,0.03938826]
[1765765753357,0.01114466,89729.0,89726.0,0.03838826]
[1765765753561,0.22289586,89728.0,89726.0,0.00172826]
[1765765753762,0.22289586,89728.0,89726.0,0.00011539]
[1765765754357,0.22289586,89728.0,89726.0,0.00111539]
[1765765754995,0.11566,89727.0,89726.0,0.00111539]
[1765765755223,0.22289586,89728.0,89726.0,0.00111539]
[1765765755630,0.22289586,89728.0,89726.0,0.00011539]
[1765765755784,0.22489586,89728.0,89726.0,0.00011539]
[1765765756029,0.22589586,89728.0,89726.0,0.00011539]
[1765765758208,0.11566,89727.0,89726.0,0.00011539]
[1765765758535,0.04744,89727.0,89726.0,0.00011539]
[1765765758733,0.22589586,89728.0,89726.0,0.00011539]
[1765765759273,0.22289586,89728.0,89726.0,0.00011539]
[1765765759423,0.003,89727.0,89726.0,0.00011539]
[1765765759641,0.001,89727.0,89726.0,0.00011539]
[1765765759845,0.22289586,89728.0,89726.0,0.00011539]
[1765765760052,0.22489586,89728.0,89726.0,0.00011539]
[1765765760306,0.22389586,89728.0,89726.0,0.00011539]
[1765765760673,0.002,89727.0,89726.0,0.00011539]
[1765765761094,0.002,89727.0,89726.0,0.04577539]
[1765765761294,0.002,89727.0,89726.0,0.00011539]
[1765765761659,0.2238967,89728.0,89726.0,0.04577539]
[1765765761936,0.2238967,89728.0,89726.0,0.00011539]
[1765765762146,0.2248967,89728.0,89726.0,0.00011539]
[1765765762385,0.2228967,89728.0,89726.0,0.00011539]
[1765765762567,0.2228967,89728.0,89727.0,0.04566]
[1765765763329,0.01114466,89729.0,89727.0,0.04566]
[1765765763931,0.2669291,89729.0,89726.0,0.00011539]
[1765765764433,0.2340391,89729.0,89726.0,0.00011539]
[1765765764637,0.01114442,89731.0,89727.0,0.22289834]
[1765765764832,0.22287975,89735.0,89730.0,0.05680454]
[1765765765040,0.01114355,89738.0,89733.0,0.09346417]
[1765765765237,0.01114355,89738.0,89737.0,0.04566]
[1765765765798,0.01114379,89736.0,89733.0,0.03827287]
[1765765765996,0.22288031,89735.0,89733.0,0.03827287]
[1765765766442,0.22288031,89735.0,89733.0,0.00161287]
[1765765766651,0.22288031,89735.0,89729.0,0.01114466]
[1765765766652,0.01114466,89729.0,89726.0,0.00011539]
[1765765766811,0.30314834,89727.0,89726.0,0.00011539]
[1765765767134,0.25578834,89727.0,89726.0,0.00011539]
[1765765767275,0.22289834,89727.0,89726.0,0.00011539]
[1765765767496,0.22289834,89727.0,89726.0,0.12030539]
[1765765767930,0.22289834,89727.0,89726.0,0.00011539]
[1765765768553,0.22289834,89727.0,89726.0,0.00211539]
[1765765768767,0.22289834,89727.0,89726.0,0.00111539]
[1765765768922,0.22289834,89727.0,89726.0,0.00011539]
[1765765774698,0.25578834,89727.0,89726.0,0.00011539]
[1765765775571,0.22289834,89727.0,89726.0,0.00011539]
[1765765776888,0.27074834,89727.0,89726.0,0.00011539]
[1765765777227,0.22389834,89727.0,89726.0,0.00011539]
[1765765780625,0.45136834,89727.0,89726.0,0.00011539]
[1765765782174,0.34006834,89727.0,89726.0,0.00011539]
[1765765782498,0.45136834,89727.0,89726.0,0.00011539]
[1765765782906,0.34006834,89727.0,89726.0,0.00011539]
[1765765783148,0.45136834,89727.0,89726.0,0.00011539]
[1765765789320,0.001,89727.0,89726.0,0.11637539]
[1765765795214,0.001,89727.0,89726.0,0.00011539]
[1765765795423,0.001,89727.0,89726.0,0.11637539]
[1765765796051,0.001,89727.0,89726.0,0.11798826]
[1765765796286,0.001,89727.0,89726.0,0.14762777]
[1765765796644,0.001,89727.0,89726.0,0.11798826]
[1765765796850,0.001,89727.0,89726.0,0.1574026]
[1765765797055,0.01114379,89736.0,89733.0,0.01114417]
[1765765797258,0.01114379,89736.0,89735.0,0.06991]
[1765765797676,0.01114379,89736.0,89735.0,0.14033]
[1765765797966,0.01114355,89738.0,89735.0,0.14033]
[1765765798144,0.01114355,89738.0,89736.0,0.07042]
[1765765798317,0.01114355,89738.0,89737.0,0.04914]
[1765765798522,0.01114355,89738.0,89737.0,0.11956]
[1765765799501,0.001,89738.0,89737.0,0.11956]
[1765765799954,0.2340016,89743.0,89737.0,0.11956]
[1765765800125,0.0111423,89748.0,89742.0,0.09413305]
[1765765800343,0.23397596,89754.0,89742.0,0.09413305]
[1765765800344,0.01114193,89751.0,89748.0,0.0111423]
[1765765800541,0.23398452,89750.0,89747.0,0.04914]
[1765765800859,0.23398452,89750.0,89748.0,0.02866]
[1765765801109,0.23398452,89750.0,89741.0,0.01114317]
[1765765801110,0.22286357,89741.0,89740.0,0.02964327]
[1765765801302,0.22286357,89741.0,89726.0,0.04472399]
[1765765801303,0.22286357,89741.0,89727.0,0.02964327]
[1765765801304,0.01114442,89731.0,89727.0,0.02964327]
[1765765801474,0.04953,89727.0,89726.0,0.00011539]
[1765765801852,0.1196,89727.0,89726.0,0.00011539]
[1765765802058,0.04953,89727.0,89726.0,0.00011539]
[1765765802262,0.22289586,89728.0,89726.0,0.00011539]
[1765765802681,0.01114466,89729.0,89726.0,0.00011539]
[1765765802863,0.22289586,89728.0,89726.0,0.00011539]
[1765765803261,0.36708016,89734.0,89726.0,0.00011539]
[1765765803262,0.22286494,89741.0,89728.0,0.01114479]
[1765765803515,0.22287308,89738.0,89732.0,0.09413429]
[1765765803657,0.22288095,89734.0,89732.0,0.08460287]
[1765765803860,0.01114392,89735.0,89733.0,0.11956]
[1765765804069,0.2228628,89742.0,89734.0,0.04914]
[1765765804280,0.0111423,89748.0,89744.0,0.0111428]
[1765765804475,0.0111423,89748.0,89747.0,0.04914]
[1765765804674,0.0111423,89748.0,89742.0,0.01114305]
[1765765804675,0.01114268,89745.0,89742.0,0.01114305]
[1765765804878,0.22283835,89752.0,89747.0,0.23398934]
[1765765804879,0.01114193,89751.0,89747.0,0.23398934]
[1765765805090,0.01114181,89752.0,89749.0,0.04415218]
[1765765805296,0.01114156,89754.0,89751.0,0.06028193]
[1765765805499,0.01114156,89754.0,89749.0,0.03462287]
[1765765805500,0.01114144,89755.0,89753.0,0.04914]
[1765765805693,0.01114131,89756.0,89752.0,0.01114181]
[1765765805903,0.01114144,89755.0,89752.0,0.00161287]
[1765765806105,0.01114144,89755.0,89753.0,0.07042]
[1765765806337,0.23396908,89756.0,89754.0,0.04914]
[1765765806507,0.23396908,89756.0,89755.0,0.04914]
[1765765806737,0.01114131,89756.0,89755.0,0.04925539]
[1765765806945,0.01114119,89757.0,89755.0,0.00011539]
[1765765807152,0.22282632,89756.0,89755.0,0.00011539]
[1765765807349,0.01114119,89757.0,89755.0,0.00011539]
[1765765807572,0.22382632,89756.0,89755.0,0.00011539]
[1765765807754,0.22282632,89756.0,89755.0,0.00011539]
[1765765807966,0.01114119,89757.0,89755.0,0.00011539]
[1765765808166,0.22282632,89756.0,89755.0,0.00011539]
[1765765808390,0.01114119,89757.0,89755.0,0.00011539]
[1765765808588,0.01114106,89758.0,89755.0,0.00011539]
[1765765808920,0.12268163,89760.0,89757.0,0.04914]
[1765765808921,0.01138163,89760.0,89757.0,0.04914]
[1765765809134,0.01138163,89760.0,89755.0,0.00172826]
[1765765809135,0.22382384,89757.0,89755.0,0.00172826]
[1765765809538,0.22282384,89757.0,89755.0,0.00172826]
[1765765809971,0.08242,89756.0,89755.0,0.00172826]
[1765765810180,0.30524632,89756.0,89755.0,0.00172826]
[1765765810621,0.30524632,89756.0,89755.0,0.00011539]
[1765765810837,0.57870617,89756.0,89755.0,0.00011539]
[1765765811048,0.50429632,89756.0,89755.0,0.00011539]
[1765765811253,0.50429632,89756.0,89728.0,0.01114479]
[1765765811254,0.1113,89730.0,89728.0,0.01114479]
[1765765811432,0.1113,89730.0,89725.0,0.01114516]
[1765765811433,0.11141491,89730.0,89725.0,0.01114516]
[1765765811691,0.01114479,89728.0,89725.0,0.01114516]
[1765765811913,0.01114479,89728.0,89722.0,0.02964327]
[1765765811914,0.01114516,89725.0,89722.0,0.02964327]
[1765765812116,0.01114566,89721.0,89718.0,0.04499603]
[1765765812324,0.01114553,89722.0,89719.0,0.01114591]
[1765765812500,0.01114529,89724.0,89719.0,0.01114591]
[1765765812702,0.01114553,89722.0,89719.0,0.01114591]
[1765765812910,0.01114553,89722.0,89718.0,0.0466089]
[1765765812911,0.01114566,89721.0,89718.0,0.0466089]
[1765765813113,0.01114566,89721.0,89718.0,0.00161287]
[1765765813322,0.03289,89731.0,89720.0,0.01114578]
[1765765813534,0.01114516,89725.0,89722.0,0.01114553]
[1765765813712,0.001,89724.0,89722.0,0.01114553]
[1765765813911,0.01214529,89724.0,89720.0,0.00161287]
[1765765814110,0.01114541,89723.0,89721.0,0.07042]
[1765765814323,0.22289911,89727.0,89721.0,0.07042]
[1765765814324,0.01114491,89727.0,89722.0,0.23405629]
[1765765814501,0.01114504,89726.0,89722.0,0.01114553]
[1765765814705,0.01114466,89729.0,89724.0,0.01114529]
[1765765815114,0.00011491,89730.0,89725.0,0.30446847]
[1765765815317,0.00011491,89730.0,89727.0,0.23404213]
[1765765815736,0.00011491,89730.0,89727.0,0.01114491]
[1765765815944,0.01125945,89730.0,89726.0,0.01114504]
[1765765816150,0.00625933,89731.0,89727.0,0.01114491]
[1765765816351,0.00625933,89731.0,89727.0,0.01275778]
[1765765816537,0.01114454,89730.0,89727.0,0.00161287]
[1765765816718,0.01768,89733.0,89729.0,0.01114466]
[1765765816950,0.01114355,89738.0,89732.0,0.09413429]
[1765765817151,0.01114342,89739.0,89737.0,0.04914]
[1765765817404,0.01114342,89739.0,89738.0,0.04914]
[1765765818220,0.01114342,89739.0,89734.0,0.01114404]
[1765765818221,0.2340183,89737.0,89731.0,0.22288635]
[1765765818358,0.01114392,89735.0,89732.0,0.00161287]
[1765765818563,0.1113,89733.0,89732.0,0.00161287]
[1765765819107,0.01114392,89735.0,89732.0,0.00161287]
[1765765819515,0.002,89739.0,89736.0,0.01114379]
[1765765820093,0.01114305,89742.0,89738.0,0.06028355]
[1765765820445,0.01114305,89742.0,89741.0,0.03385]
[1765765820933,0.0111433,89740.0,89737.0,0.01114367]
[1765765821132,0.0111433,89740.0,89736.0,0.01275666]
[1765765821133,0.23501266,89739.0,89736.0,0.00161287]
[1765765821289,0.04953,89737.0,89736.0,0.00161287]
[1765765821494,0.2309,89737.0,89736.0,0.00161287]
[1765765822092,0.16083,89737.0,89736.0,0.00161287]
[1765765822318,0.01114404,89734.0,89731.0,0.01114442]
[1765765822536,0.1113,89735.0,89731.0,0.01114442]
[1765765823076,0.12244392,89735.0,89731.0,0.01114442]
[1765765823278,0.1113,89735.0,89732.0,0.23403021]
[1765765823482,0.01214367,89737.0,89733.0,0.01114417]
[1765765823737,0.001,89737.0,89734.0,0.23402499]
[1765765823957,0.01114355,89738.0,89734.0,0.23402499]
[1765765824858,0.23398703,89749.0,89741.0,0.01114317]
[1765765825062,0.25571797,89756.0,89749.0,0.01114218]
[1765765825063,0.01114181,89752.0,89749.0,0.01114218]
[1765765825220,0.01114156,89754.0,89749.0,0.01114218]
[1765765825420,0.01114131,89756.0,89753.0,0.03385]
[1765765825623,0.01114106,89758.0,89753.0,0.09413168]
[1765765825826,0.01114106,89758.0,89751.0,0.2228381]
[1765765825827,0.01114156,89754.0,89751.0,0.01114193]
[1765765826083,0.01114168,89753.0,89750.0,0.01114206]
[1765765826291,0.01114181,89752.0,89749.0,0.00161287]
[1765765826445,0.22283874,89751.0,89749.0,0.00161287]
[1765765826669,0.01114181,89752.0,89749.0,0.00161287]
[1765765827685,0.001,89751.0,89749.0,0.00161287]
[1765765827896,0.01114181,89752.0,89749.0,0.00161287]
[1765765828098,0.22283874,89751.0,89749.0,0.00161287]
[1765765828508,0.01114181,89752.0,89749.0,0.00161287]
[1765765829088,0.01214181,89752.0,89749.0,0.00161287]
[1765765829966,0.001,89752.0,89749.0,0.00161287]
[1765765830169,0.01214181,89752.0,89749.0,0.01275505]
[1765765830749,0.01214181,89752.0,89749.0,0.00161287]
[1765765830949,0.04735,89750.0,89749.0,0.00161287]
[1765765831571,0.001,89752.0,89749.0,0.28435875]
[1765765831806,0.001,89752.0,89751.0,0.08415287]
[1765765832014,0.00024082,89760.0,89751.0,0.08415287]
[1765765832015,0.00024082,89760.0,89757.0,0.01114119]
[1765765832234,0.00024082,89760.0,89759.0,0.04876]
[1765765832671,0.00024082,89760.0,89759.0,0.12128]
[1765765833221,0.00024082,89760.0,89759.0,0.12289287]
[1765765833599,0.00124082,89760.0,89759.0,0.12289287]
[1765765833967,0.00224082,89760.0,89759.0,0.12289287]
[1765765834578,0.00224082,89760.0,89751.0,0.03378]
[1765765834579,0.22282711,89756.0,89751.0,0.03378]
[1765765834768,0.22282711,89756.0,89744.0,0.29537594]
[1765765834769,0.06073163,89760.0,89747.0,0.2907]
[1765765834770,0.22284515,89749.0,89747.0,0.2907]
[1765765834901,0.22284515,89749.0,89744.0,0.0288228]
[1765765834902,0.01114243,89747.0,89744.0,0.0288228]
[1765765835086,0.23399297,89747.0,89744.0,0.01768]
[1765765835311,0.01114255,89746.0,89742.0,0.01114305]
[1765765835516,0.01114243,89747.0,89743.0,0.23400153]
[1765765835715,0.01114243,89747.0,89744.0,0.0111428]
[1765765836084,0.1113,89752.0,89749.0,0.01114218]
[1765765836277,0.23397344,89754.0,89750.0,0.01114206]
[1765765836576,0.23397344,89754.0,89750.0,0.04492206]
[1765765836776,0.23397344,89754.0,89746.0,0.22285069]
[1765765836777,0.01114218,89749.0,89745.0,0.01114268]
[1765765837003,0.23398698,89749.0,89745.0,0.01114268]
[1765765837207,0.23398673,89749.0,89745.0,0.01114268]
[1765765837385,0.23398673,89749.0,89743.0,0.01314293]
[1765765837386,0.0111423,89748.0,89743.0,0.01314293]
[1765765837841,0.01114243,89747.0,89744.0,0.08527567]
[1765765838520,0.0111423,89748.0,89745.0,0.01114268]
[1765765838679,0.01114243,89747.0,89744.0,0.08527567]
[1765765838882,0.01114243,89747.0,89745.0,0.001]
[1765765839111,0.01114243,89747.0,89744.0,0.08627567]
[1765765839358,0.01114243,89747.0,89744.0,0.07513287]
[1765765839495,0.01114243,89747.0,89744.0,0.07613287]
[1765765839689,0.01114243,89747.0,89744.0,0.07413287]
[1765765840161,0.01114193,89751.0,89748.0,0.0111423]
[1765765840288,0.01114193,89751.0,89746.0,0.01114255]
[1765765841006,0.01114193,89751.0,89746.0,0.23399329]
[1765765841237,0.01114193,89751.0,89748.0,0.0111423]
[1765765841443,0.01114181,89752.0,89748.0,0.0111423]
[1765765841690,0.23397855,89752.0,89748.0,0.0111423]
[1765765842163,0.01114181,89752.0,89748.0,0.0111423]
[1765765842386,0.01114206,89750.0,89747.0,0.01114243]
[1765765842590,0.001,89751.0,89749.0,0.01114218]
[1765765842793,0.2228316,89754.0,89749.0,0.01114218]
[1765765843264,0.001,89752.0,89749.0,0.01114218]
[1765765843481,0.2228316,89754.0,89749.0,0.01114218]
[1765765843839,0.001,89751.0,89749.0,0.01114218]
[1765765844041,0.001,89751.0,89748.0,0.0111423]
[1765765844247,0.1113,89748.0,89745.0,0.01114268]
[1765765844449,0.1224423,89748.0,89745.0,0.01114268]
[1765765844654,0.1113,89748.0,89745.0,0.23399406]
[1765765845013,0.03289,89749.0,89747.0,0.22284627]
[1765765845234,0.33413361,89754.0,89747.0,0.22284627]
[1765765845235,0.01214181,89752.0,89749.0,0.01114218]
[1765765845435,0.01114168,89753.0,89749.0,0.23398588]
[1765765845681,0.01114168,89753.0,89749.0,0.01114218]
[1765765845869,0.01114181,89752.0,89749.0,0.01114218]
[1765765846099,0.01114193,89751.0,89748.0,0.0111423]
[1765765846249,0.01114181,89752.0,89749.0,0.01114218]
[1765765846452,0.30929821,89752.0,89748.0,0.0111423]
[1765765846657,0.01214181,89752.0,89748.0,0.0111423]
[1765765846834,0.01114243,89747.0,89741.0,0.23400525]
[1765765847046,0.0111423,89748.0,89741.0,0.23400525]
[1765765847410,0.19154,89745.0,89744.0,0.00161287]